Cogmind - Beta 17 @@@ ROGUE MODE // 2026.07.09 @ 09:49:38 Player: hanzu Result: Destroyed by Autobeam Turret with Autobeam Performance ------------- Evolutions (0) 0 Regions Visited (2) 400 Robots Destroyed (35) 175 Value Destroyed (1049) 1049 Prototype IDs (15) 300 Alien Tech Used (0) 0 Bonus (0) 0 TOTAL SCORE: 1924 Bonus ------- None Cogmind --------- Core Integrity 0/250 Matter 134/300 Energy 180/180 System Corruption 1% Temperature Cool (12) Movement Treading (160) Location -10/Subcaves Parts ------- > --- POWER (1) -------- Meta Core > --- PROPULSION (2+1) - Light Treads Subdweller Monowheel > --- UTILITY (2) ------ Makeshift Light Armor Plating Makeshift Light Armor Plating > --- WEAPON (2) ------- Battle Rifle Subdweller Machine Gun > --- INVENTORY (5) ---- Light Ion Engine Large Storage Unit Grenade Launcher Grenade Launcher Peak State ------------ > --- POWER ------------ Meta Core > --- PROPULSION ------- Light Treads Subdweller Monowheel > --- UTILITY ---------- Makeshift Light Armor Plating Self-contained Transmogrifier > --- WEAPON ----------- Subdweller Machine Gun > --- INVENTORY -------- Light Ion Engine Large Storage Unit Battle Rifle Grenade Launcher Grenade Launcher [Rating: 31] Favorites ----------- Power Meta Core Engine Light Ion Engine Power Core Meta Core Propulsion Light Treads Treads Light Treads Wheel Subdweller Monowheel Utility Makeshift Light Armor Plating Device Disposable Heat Sink Storage High-capacity Matter Pod Processor Visual Processing Unit Protection Makeshift Light Armor Plating Weapon Grenade Launcher Energy Gun EM Pulse Gun Energy Cannon Beam Cannon Ballistic Gun Assault Rifle Ballistic Cannon Light Cannon Launcher Grenade Launcher Build | -11 -10 -10 ------- Run | Yrd Mat Sub Slots Evolved . | . . . Power . | . . . Propulsion . | . . . Utility . | . . . Weapon . | . . . Parts Attached 33 | 6 5 22 Power 5 | 1 1 3 Engine 4 | 1 1 2 Core 1 | . . 1 Reactor . | . . . Propulsion 5 | 2 . 3 Treads 4 | 2 . 2 Leg . | . . . Wheel 1 | . . 1 Hover . | . . . Flight . | . . . Utility 12 | 1 2 9 Device 5 | . . 5 Storage 2 | 1 . 1 Processor 1 | . 1 . Hackware . | . . . Protection 4 | . 1 3 Artifact . | . . . Weapon 11 | 2 2 7 Energy Gun 1 | 1 . . Energy Cannon 1 | . . 1 Ballistic Gun 3 | 1 . 2 Ballistic Cannon 3 | . 2 1 Launcher 3 | . . 3 Special Weapon . | . . . Impact Weapon . | . . . Slashing Weapon . | . . . Piercing Weapon . | . . . Special Melee Weapon . | . . . Unidentified Prototypes 2 | . . 2 Parts Lost 9 | . . 9 Power 1 | . . 1 Propulsion 3 | . . 3 Utility 2 | . . 2 Weapon 3 | . . 3 Highest Loss Streak 3 | . . 3 To Critical Strikes . | . . . Average Backups 3 | 1 4 3 Power . | . . . Propulsion . | . . . Utility 1 | . . 1 Weapon 1 | . 2 1 Tool/Special . | . . . Unused Backups 4 | . 2 2 Power 1 | . . 1 Propulsion . | . . . Utility 2 | . 1 1 Weapon 1 | . 1 . Tool/Special . | . . . Average Slot Usage (%) 89 | . 99 87 Engine 2 | . 14 . Core 8 | . . 9 Treads 17 | . 28 15 Wheel 4 | . . 5 Device 5 | . . 5 Storage 10 | . 14 10 Processor 1 | . 9 . Protection 12 | . 4 13 Energy Gun 1 | . 11 . Energy Cannon 3 | . . 4 Ballistic Gun 2 | . 11 . Ballistic Cannon 8 | . 5 9 Launcher 9 | . . 11 Peak Build Rating 31 | 6 8 31 Average Rating 21 | 4 7 23 On Entrance 4 | . 6 8 Avg Prop Armor Cover (%) 3 | . 10 3 Naked Turns . | . . . Heaviest Build 37 | 12 14 37 Greatest Support 40 | 40 40 40 Greatest Overweight (x) 1 | . . 1 Average Overweight (x) . | . . . Largest Inventory Capacity 8 | 8 8 8 Average Capacity 5 | 7 8 5 Most Carried 8 | 3 8 8 Average Carried 3 | 1 4 3 Final Capacity 8 | 8 8 5 Final Carried 8 | 2 8 4 Class Distribution -------------------- 67% | Mutant 17% | Tank 14% | Gunner Dominant Class ---------------- Mutant | -10/Materials Mutant | -10/Subcaves Resources | -11 -10 -10 ----------- Run | Yrd Mat Sub Matter Collected 1141 | 209 103 829 Remotely . | . . . Salvage Created 893 | . 311 582 Parts 60 | . 29 31 Haulers Intercepted 1 | . 1 . Recyclers Shooed . | . . . Parts Field Recycled . | . . . Retrieved Matter . | . . . Parts Self-Destructed 5 | . . 5 Prevented . | . . . Parts Restored . | . . . Kills | -11 -10 -10 ------- Run | Yrd Mat Sub Combat Hostiles Destroyed 29 | . 6 23 Guns 4 | . 4 . Cannons 15 | . 1 14 AOE 9 | . . 9 Classes Destroyed 8 | . 6 2 Worker 1 | . 1 . Hauler 1 | . 1 . Operator 1 | . 1 . Watcher 3 | . 3 . Swarmer 7 | . 3 4 Grunt 7 | . 3 4 Sentry 1 | . . 1 Subdweller 14 | . . 14 Best Kill Streak 4 | . 2 4 Combat Bots Only 4 | . 2 4 Max Kills in Single Turn 2 | . 2 2 Gunslinging . | . . . Exploded 2 | . . 2 Melee . | . . . Uniques/NPCs Destroyed . | . . . Combat | -11 -10 -10 -------- Run | Yrd Mat Sub Hostile Shots Fired 124 | . 26 98 Missed 35 | . 9 26 Hits 89 | . 17 72 Projectile 89 | . 17 72 AOE 4 | . . 4 Part Disruptions 1 | . 1 . Damage Taken 1925 | . 238 1687 Core 250 | . 34 216 Absorbed by Shields . | . . . Redirected to Shielding 13 | . 13 . Core Remaining (%) 100 | 100 . . Volleys Fired 108 | . 31 77 Largest 3 | . 2 3 Hottest 120 | . 60 120 Shots Fired 217 | . 60 157 Gun 65 | . 54 11 Cannon 129 | . 6 123 Launcher 23 | . . 23 Special . | . . . Kinetic 130 | . 34 96 Thermal 38 | . . 38 Explosive 23 | . . 23 Electromagnetic 26 | . 26 . Robot Hit Streak 11 | . 6 11 Robot Miss Streak 4 | . 3 4 Penetration Max . | . . . Secondary Targets . | . . . Shots Hit Robots 119 | . 34 85 Core Hits 59 | . 16 43 Critical Kills . | . . . Critical Parts Destroyed . | . . . Critical Strikes 4 | . . 4 Blast 4 | . . 4 Melee Attacks . | . . . Impact . | . . . Slashing . | . . . Piercing . | . . . Sneak Attacks . | . . . Combat Hostiles . | . . . Follow-up Attacks . | . . . Damage Inflicted 2490 | . 535 1955 Guns 410 | . 410 . Cannons 1266 | . 70 1196 Explosions 814 | . 55 759 Melee . | . . . Ramming . | . . . Kinetic 1132 | . 267 865 Thermal 356 | . 25 331 Explosive 759 | . . 759 Electromagnetic 243 | . 243 . Impact . | . . . Slashing . | . . . Piercing . | . . . Highest Corruption 1 | . 1 1 Average Corruption 1 | . 1 1 Corruption Purged . | . . . Corruption Blocked . | . . . Effects 30 | . 3 27 Message Errors 10 | . 2 8 Matter Fused 9 | . 1 8 Heat Flow Errors 3 | . . 3 Energy Discharges 2 | . . 2 Data Loss (minor) 5 | . . 5 Misfires 1 | . . 1 Overload Shots . | . . . Overflow Damage . | . . . Projectiles . | . . . Explosions . | . . . Melee . | . . . Knockbacks 8 | . 1 7 Impact . | . . . Kinetic 8 | . 1 7 Secondary . | . . . Self-Inflicted Damage 80 | . 62 18 Shots 4 | . 2 2 Rammed . | . . . Targets Rammed . | . . . Kicked . | . . . Crushed . | . . . Highest Temperature 176 | . 45 176 Average Temperature 31 | . 19 36 Received Heat Transfer 420 | . 69 351 Siege Activations . | . . . Martial Activations . | . . . Shielding Activations . | . . . Robots Disrupted . | . . . Combat Hostiles . | . . . Robots Corrupted 1 | . 1 . Combat Hostiles 1 | . 1 . Parts Fried 2 | . 2 . Impact Corruptions . | . . . Robots Melted . | . . . Combat Hostiles . | . . . Parts Melted 1 | . . 1 Heat Transferred 753 | . 50 703 Parts Sabotaged . | . . . Parts Stolen . | . . . Parts Stripped . | . . . Power Chain Reactions 1 | . 1 . Alert | -11 -10 -10 ------- Run | Yrd Mat Sub Maximum Alert Level . | . . . Low Security (%) 100 | 100 100 . Level 1 . | . . . Level 2 . | . . . Level 3 . | . . . Level 4 . | . . . Level 5 . | . . . High Security . | . . . Max Security . | . . . Peak Influence 88 | . 88 . Initial . | . . . Average 23 | . 25 . Influence Increases 513 | . 268 245 Destroy 0b10 Robot/C 300 | . 120 180 Destroy 0b10 Robot/NC 30 | . 30 . Destroy Leader 48 | . 28 20 Successful Hack 23 | . 23 . Disable Machine 45 | . 45 . Destroy Structure 7 | . 7 . Lose Combat Pursuer 60 | . 15 45 Influence Decreases 348 | . 256 92 Entered New Map 7 | . . 7 Time Decay 341 | . 256 85 Squads Dispatched 1 | . 1 . Investigation . | . . . Extermination . | . . . Reinforcement 1 | . 1 . Assault . | . . . Garrison . | . . . Intercept . | . . . Searches Triggered . | . . . Construction Impeded . | . . . Haulers Reinforced . | . . . Active Scanning Responses . | . . . Cargo Convoy Interrupts . | . . . Stealth | -11 -10 -10 --------- Run | Yrd Mat Sub Distress Signals . | . . . Communications Jammed . | . . . Distress Signals . | . . . Times Spotted 37 | . 14 23 Peak Tracking Total 4 | . 3 4 Tactical Retreats 2 | . 1 1 Traps | -11 -10 -10 ------- Run | Yrd Mat Sub Traps Triggered 1 | . . 1 Indirectly . | . . . Trap Hack Attempts . | . . . Triggered . | . . . Disarmed . | . . . Reprogrammed . | . . . Reused . | . . . Traps Extracted . | . . . Installed . | . . . Triggered . | . . . Machines | -11 -10 -10 ---------- Run | Yrd Mat Sub Machines Disabled 6 | . 3 3 Max in Single Turn 2 | . 2 2 Machines Repaired . | . . . Machines Dismantled . | . . . Machines Sabotaged . | . . . Overloaded Fab Kills . | . . . Hacking | -11 -10 -10 --------- Run | Yrd Mat Sub Machines Accessed 10 | . 8 2 Terminals 5 | . 5 . Fabricators . | . . . Repair Stations 1 | . 1 . Recycling Units 2 | . 2 . Scanalyzers . | . . . Garrison Access . | . . . Total Hacks 45 | . 32 13 Successful 26 | . 13 13 Failed 19 | . 19 . Catastrophic . | . . . Database Lockouts . | . . . Manual 26 | . 26 . Terminals 20 | . 20 . Fabricators . | . . . Repair Stations 1 | . 1 . Recycling Units 11 | . 11 . Scanalyzers . | . . . Garrison Access . | . . . Terminal Hacks 15 | . 2 13 Record 12 | . . 12 Robot Analysis 2 | . 2 . Proto ID Catalog 1 | . . 1 Fabricator Hacks . | . . . Repair Station Hacks . | . . . Recycling Unit Hacks 1 | . 1 . Retrieve Components 1 | . 1 . Scanalyzer . | . . . Garrison Access Hacks . | . . . Unauthorized Hacks 10 | . 10 . Terminals 8 | . 8 . Botnet 3 | . 3 . Skim 5 | . 5 . Fabricators . | . . . Repair Stations . | . . . Recycling Units 2 | . 2 . Mask 2 | . 2 . Scanalyzers . | . . . Garrison Access . | . . . Data Cores Recovered . | . . . Used . | . . . Hacking Detections 8 | . 8 . Full Trace Events . | . . . Feedback Events . | . . . Feedback Blocked . | . . . Robot Schematics Acquired . | . . . Robots Built . | . . . Authchips . | . . . Time . | . . . Total Robot Build Rating . | . . . Part Schematics Acquired . | . . . Parts Built . | . . . Authchips . | . . . Time . | . . . Total Part Build Rating . | . . . Part Studies Acquired . | . . . Parts Repaired . | . . . Time . | . . . Parts Recycled . | . . . Recycled Matter . | . . . Retrieved Matter . | . . . Retrieved Components 7 | . 7 . Parts Scanalyzed . | . . . Part Schematics Acquired . | . . . Parts Damaged . | . . . Bothacking | -11 -10 -10 ------------ Run | Yrd Mat Sub Used RIF Installer . | . . . Robots Hacked . | . . . Non-combat . | . . . Combat . | . . . Robot Hacks Applied . | . . . Relay Couplers Released . | . . . Fabnet Peak Effective % . | . . . Robots Rewired . | . . . Allies Hacked . | . . . Hacks Repelled . | . . . Allies | -11 -10 -10 -------- Run | Yrd Mat Sub Total Allies . | . . . Largest Group . | . . . Highest-Rated Group . | . . . Highest-Rated Ally . | . . . Total Orders . | . . . Ally Attacks . | . . . Total Damage . | . . . Kills . | . . . Allies Corrupted . | . . . Allies Melted . | . . . Intel | -11 -10 -10 ------- Run | Yrd Mat Sub Active Infowar (turns) 802 | . 509 293 Optics 588 | . 509 79 Structural 214 | . . 214 Robot Analysis Total 2 | . 2 . Derelict Logs Recovered 3 | . . 3 Drone Launches . | . . . Drone Recoveries . | . . . Exploration | -11 -10 -10 ------------- Run | Yrd Mat Sub Turns Passed 5015 | 69 780 4166 Spaces Moved 2547 | 41 400 2106 Core 7 | 7 . . Treads 2347 | 34 400 1913 Legs . | . . . Wheels 193 | . . 193 Hover . | . . . Flight . | . . . Fastest Speed 50 | 50 160 110 Average Speed 178 | 141 160 182 Slowest Speed 240 | 160 160 240 Overloaded Moves . | . . . Propulsion Burnouts . | . . . Robots Hopped . | . . . Potential Cave-ins . | . . . Cave-ins Triggered . | . . . Exploration Rate (%) 56 | 3 79 86 Regions Visited 2 Branch Regions 1 Pre-discovered Areas 1 | . . 1 Known Exits Taken . | . . . Unknown Exits Taken 2 | 1 1 . Scrap Searched 3 | . . 3 Spaces Dug . | . . . Terrain Destroyed 103 | . 5 98 Melee . | . . . Projectile . | . . . AOE 103 | . 5 98 Terrain Rammed . | . . . Walls Destroyed . | . . . Machines Disabled . | . . . Actions | -11 -10 -10 --------- Run | Yrd Mat Sub Total 2816 | 50 482 2284 Wait 81 | . 30 51 Move 2545 | 40 399 2106 Hop . | . . . Pick Up 21 | 4 11 6 Fast Attach 20 | 4 2 14 Attach 13 | 2 3 8 Detach 1 | . . 1 Swap 5 | . . 5 Drop 21 | . 6 15 Fire 108 | . 31 77 Melee . | . . . Ram . | . . . Kick . | . . . Crush . | . . . Escape Stasis . | . . . Rewire . | . . . Trap . | . . . Miscellaneous 1 | . . 1 Route ------- -11/Scrapyard -10/Materials (discovered 3 exits: [*Mat x2] / *Sub) -10/Subcaves (discovered 3 exits: [*Mat x2] / *Rec) History --------- Turn | Location | Event 28 | -11/Scrapyard | Discovered new exit (range 16) 70 | -11/Scrapyard | Entered Materials 297 | -10/Materials | Discovered new exit (range 8) 308 | -10/Materials | Build established: Mutant 509 | -10/Materials | Discovered new exit (range 4) 840 | -10/Materials | Discovered new exit (range 7) 850 | -10/Materials | Entered Subcaves 947 | -10/Subcaves | Ambushed by Subdwellers from Twisted Machinery 1120 | -10/Subcaves | A Subdweller sparked back to life 1120 | -10/Subcaves | A Subdweller sparked back to life 1120 | -10/Subcaves | A Subdweller sparked back to life 1135 | -10/Subcaves | Core integrity fell below 50% 1148 | -10/Subcaves | Learned Materials terminal intel 1171 | -10/Subcaves | Lost 3 parts (2n1u) 1199 | -10/Subcaves | Found Prototype Power Core 1199 | -10/Subcaves | Identified Meta Core 1200 | -10/Subcaves | Attached Meta Core, gained temporary slots: Propulsion, Utility, Weapon 1442 | -10/Subcaves | Core integrity fell below 20% 1454 | -10/Subcaves | Discovered new exit (range 10) 1490 | -10/Subcaves | Discovered new exit (range 5) 1752 | -10/Subcaves | Build established: Gunner 2498 | -10/Subcaves | Build established: Tank 2637 | -10/Subcaves | Shifting Twisted Machinery released Flamer 2990 | -10/Subcaves | Shifting Twisted Machinery released Sub. Optics 3059 | -10/Subcaves | Shifting Twisted Machinery released Flamer 3139 | -10/Subcaves | Build established: Mutant 3141 | -10/Subcaves | Identified exit to Recycling 3364 | -10/Subcaves | Visited Clippyterm 3371 | -10/Subcaves | Learned location of Deep Caves (-7) 3371 | -10/Subcaves | Learned Factory trap positions 4752 | -10/Subcaves | Visited 4L-MR0's lab 4769 | -10/Subcaves | Found Prototype Device 4769 | -10/Subcaves | Identified Sfc. Transmogrifier 5016 | -10/Subcaves | Destroyed by Autobeam Turret with Autobeam Last Messages --------------- 04769_ Acquired Prototype Device. 04769_ Identified Sfc. Transmogrifier. 04771_ Discarded Sfc. Transmogrifier. 04774_ Acquired Mak. Light Armor Plating. 04780_ Testing Chamber breached. 04828_ G-34 Mercenary destroyed. 04829_ The unstable cave ceiling collapses. 04831_ G-47 Trooper destroyed. 04837_ Ion Engine fries itself beyond repair. 04842_ Aluminum Leg fries itself beyond repair. 04845_ Acquired 27 matter. 04849_ Imp. Heat Sink fries itself beyond repair. 04924_ System corrupted: Matter fused (-5). 04999_ 1#ZJ|XQJG>DE3Q CZV3UZ,H9 RYI 7I RFEKL 05006_ S-10 Pest destroyed. 05008_ OT-2BY(R): "ARGHSUB!" 05008_ OT-2BY(R) destroyed. 05011_ Lgt. Assault Rifle fries itself beyond repair. 05012_ S-10 Pest destroyed. 05016_ Subatomizers dissect the Sub. Monowheel. Map ----- +----------------------------------------------------+ | ?????????????????????????????????????????????????? | | ?????????????????????????????????????????????????? | | ?????????????????????????????????????????????????? | | ?????????????????????????????????????????????????? | | ?????????????????????????????????????????????????? | | ?????????????????????????????????????????????????? | | ?????????????????????????????????????????????????? | | ?????????????????????????????????????????????????? | | ?????????????????????????????????????????????????? | | ????????????????????????? ???????????????????????? | | ???????????????????????? ???????????????????????? | | ???????????????????????? ???????????????????????? | | ???????????????????????? #??????????????????????? | | ???????????????????????? ??????????????????????? | | ????????????????????????? ??????????????????????? | | ????????????????????????? ??????#??#????????????? | | ????????????????????????? ##??? ## ##???????????? | | ????????????????????????? #??=& ##??????????? | | ?????????????????????????# #? &%%% "#??????????? | | ?????????????????????????# ## & #??????????? | | ?????????????????????????# "???????????? | | ?????????????????????????# t "##?????????? | | ?????????????????????????# % >??????????? | | ????????????????????????## % ??????????????? | | ????????????????????????# #?????????????????? | | ????????????????????????#@ #????????????????????? | | ????????????????????????# #????????????????????? | | ????????????????????????# #????????????????????? | | ????????????????????????## ##???????????????????? | | ?????????????????????????# #???????????????????? | | ?????????????????????????## #???????????????????? | | ???????????????????????### ###???????????????????? | | ???????????????????????# # #?????????????????????? | | ???????????????????????## ##?????????????????????? | | ????????????????????????# ##?????????????????????? | | ????###?????????????????## #????????????????????## | | ???## ##?????????????????# ##???????????????????# | | #### ##????????????????## ##??????????????????# | | # #######???????????## ##?????????????###### | | # ##???????????# #?????????????#"""## | | ?# ###????????### #?????????????#"" ## | | ??# #????????# ##?????????????#"X | | ??# ####??????### #??????????????#"" ## | | ### ## ###?????????# ###??????????????#"""## | | ## #####???????????## #????????????????###### | | ###???????###????## ##?????????????????????# | | ###????#### ##???# ##???????????######?????# | | #???## # ##?## #???????????## #?????# | | #??## #### ### ##??????????## #?????# | | ## ##?## ###??##" ##??????????## #??????# | +----------------------------------------------------+ Best States ------------- Heat Dissipation 25 Coolant Potential 100 Energy Generation 17 Energy Capacity 200 Matter Stores 454 Matter Capacity 500 Sight Range 18 Terrain Scan Density 10 Armor Coverage 800 Power Shielding 33 Evasion (%) 40 Recoil Reduction 2 Item Schematics ----------------- None Robot Schematics ------------------ None Fabricated ------------ Nothing Repaired ---------- Nothing Studied --------- None Alien Tech Used ----------------- None Achievements -------------- Survival Of The Most Covered Challenges ------------ None Game ------ Seed PietyGunSpiker Manual? 0 Play Time 00:22:32 Cumulative 218.4 hours Start 2026.07.09 @ 09:26:58 End 2026.07.09 @ 09:49:38 Sessions 1 Manual Loads 0 Difficulty Rogue Special Mode None Game No. 205 Rogue 205 Adventurer 0 Explorer 0 Win Type - Total 3 Types 3/0/0/0/0/0/0/0/0/0 Lore% 55 Gallery% 60 Achievement% 38 Wizard Run 0 Options --------- Layout 0 ASCII 0 Keyboard 0 Movement Numpad Keybinds 0 Fullscreen 2 Font 18/SmallcapsGlow Map View 76x50 Zoom Use 0% Tactical HUD 1 Map Filters NONE Filters NONE Steam 1 RUN: c3dd5119-40ca-4371-9ee3-d9ac046be722